bitfinex-derivatives/quotes_BTCF0:USTF0_20250114
["timestamp","ask_amount","ask_price","bid_price","bid_amount"]
[1736868633002,0.0433,96566.0,96563.0,0.051797]
[1736868633308,0.051778,96598.0,96556.0,0.34065008]
[1736868633502,0.051778,96598.0,96583.0,0.051786]
[1736868633503,0.051784,96588.0,96583.0,0.051786]
[1736868633704,0.0436,96590.0,96580.0,0.17032504]
[1736868633906,0.0436,96590.0,96589.0,0.051783]
[1736868634104,0.05178,96596.0,96595.0,0.05178]
[1736868634300,0.051784,96589.0,96581.0,0.051787]
[1736868634501,0.051783,96590.0,96578.0,0.051789]
[1736868634698,0.0453,96589.0,96578.0,0.0084955]
[1736868634902,0.0453,96589.0,96570.0,0.17032504]
[1736868635102,0.0439,96598.0,96579.0,0.22211304]
[1736868635312,0.051782,96592.0,96581.0,0.051787]
[1736868635505,0.05178,96596.0,96570.0,0.001]
[1736868635720,0.051783,96590.0,96567.0,0.1864958]
[1736868635913,0.0439,96598.0,96564.0,0.051796]
[1736868635914,0.051786,96585.0,96584.0,0.051785]
[1736868636506,0.0417,96589.0,96580.0,0.001]
[1736868636507,0.093484,96589.0,96588.0,0.051784]
[1736868636702,0.0439,96598.0,96589.0,0.051783]
[1736868636910,0.002,96590.0,96589.0,0.051783]
[1736868637509,0.1,96600.0,96598.0,0.051778]
[1736868637713,0.051784,96591.0,96590.0,0.051781]
[1736868638217,0.051784,96591.0,96584.0,0.001]
[1736868638218,0.1,96600.0,96585.0,0.051785]
[1736868638414,0.1,96600.0,96598.0,0.051778]
[1736868639308,0.1,96600.0,96598.0,0.06040484]
[1736868640015,0.00955352,96599.0,96598.0,0.06140484]
[1736868640410,0.06133152,96599.0,96598.0,0.052778]
[1736868641016,0.06133152,96599.0,96598.0,0.001]
[1736868641517,0.05565352,96599.0,96598.0,0.052778]
[1736868642115,0.05565352,96599.0,96598.0,0.001]
[1736868642416,0.10743152,96599.0,96598.0,0.001]
[1736868643715,0.15223152,96599.0,96598.0,0.001]
[1736868644912,0.40045352,96599.0,96573.0,0.0475]
[1736868645112,0.051784,96588.0,96573.0,0.051792]
[1736868645413,0.051792,96572.0,96561.0,0.051798]
[1736868645610,0.051792,96572.0,96571.0,0.051793]
[1736868645813,0.051788,96580.0,96563.0,0.00849473]
[1736868646017,0.0518,96558.0,96557.0,0.1864958]
[1736868646413,0.0518,96558.0,96547.0,0.00873896]
[1736868646414,0.051803,96553.0,96547.0,0.00873896]
[1736868646616,0.051814,96532.0,96531.0,0.18565597]
[1736868648126,0.051817,96527.0,96526.0,0.24754129]
[1736868648315,0.051817,96526.0,96514.0,0.00864092]
[1736868648818,0.051817,96526.0,96523.0,0.051818]
[1736868649016,0.051817,96526.0,96524.0,0.051818]
[1736868649814,0.052817,96526.0,96524.0,0.051818]
[1736868650215,0.051817,96526.0,96524.0,0.051818]
[1736868650914,0.051817,96526.0,96524.0,0.053818]
[1736868651821,0.051808,96542.0,96533.0,0.051813]
[1736868652020,0.43322504,96570.0,96530.0,0.17032504]
[1736868652218,0.00849703,96557.0,96550.0,0.17032504]
[1736868652415,0.00849703,96557.0,96556.0,0.051801]
[1736868652617,0.051798,96561.0,96559.0,0.051799]
[1736868652919,0.12149562,96569.0,96540.0,0.0459]
[1736868653116,0.17032504,96560.0,96540.0,0.0459]
[1736868653325,0.051809,96541.0,96540.0,0.051809]
[1736868653711,0.051811,96538.0,96534.0,0.051813]
[1736868653917,0.051813,96533.0,96525.0,0.0459]
[1736868654118,0.051806,96547.0,96530.0,0.00877935]
[1736868654529,0.051806,96547.0,96530.0,0.17910439]
[1736868654727,0.051808,96543.0,96540.0,0.05181]
[1736868655018,0.17032504,96550.0,96536.0,0.051811]
[1736868655221,0.051809,96541.0,96536.0,0.051811]
[1736868655425,0.051806,96548.0,96544.0,0.051807]
[1736868655616,0.004,96541.0,96530.0,0.17910439]
[1736868656017,0.004,96541.0,96539.0,0.05181]
[1736868656416,0.004,96541.0,96532.0,0.051814]
[1736868656618,0.051814,96532.0,96525.0,0.097717]
[1736868656919,0.002,96550.0,96535.0,0.051812]
[1736868657125,0.002,96550.0,96530.0,0.17032504]
[1736868657714,0.002,96550.0,96536.0,0.051812]
[1736868657922,0.051811,96538.0,96526.0,0.0457]
[1736868658125,0.051808,96544.0,96528.0,0.17032504]
[1736868658317,0.053805,96550.0,96544.0,0.051807]
[1736868658631,0.004,96541.0,96540.0,0.22213504]
[1736868658819,0.004,96541.0,96540.0,0.05181]
[1736868659014,0.051802,96554.0,96532.0,0.0473]
[1736868659317,0.051797,96564.0,96544.0,0.17032504]
[1736868659517,0.00155418,96574.0,96561.0,0.051798]
[1736868659518,0.051796,96566.0,96561.0,0.051798]
[1736868659719,0.051796,96566.0,96562.0,0.0438]
[1736868659920,0.051796,96566.0,96563.0,0.051797]
[1736868660120,0.00155418,96574.0,96562.0,0.0438]
[1736868660521,0.00155418,96574.0,96555.0,0.0485]
[1736868660522,0.17032504,96572.0,96555.0,0.0485]
[1736868660714,0.17032504,96572.0,96552.0,0.051803]
[1736868660915,0.0518,96559.0,96555.0,0.051801]
[1736868661230,0.00155418,96574.0,96558.0,0.051799]
[1736868661430,0.051799,96561.0,96549.0,0.17032504]
[1736868661730,0.051799,96561.0,96559.0,0.051799]
[1736868661925,0.051799,96561.0,96560.0,0.051799]
[1736868662221,0.051797,96564.0,96563.0,0.051797]
[1736868662423,0.21872504,96590.0,96548.0,0.05275216]
[1736868662424,0.17032504,96573.0,96548.0,0.05275216]
[1736868662633,0.17032504,96560.0,96548.0,0.0438]
[1736868662822,0.051808,96545.0,96544.0,0.051807]
[1736868663219,0.051803,96553.0,96538.0,0.00899158]
[1736868663416,0.0518,96559.0,96557.0,0.0518]
[1736868663623,0.056796,96566.0,96565.0,0.051796]
[1736868663929,0.005,96566.0,96565.0,0.051796]
[1736868664132,0.051788,96581.0,96565.0,0.051796]
[1736868664326,0.051788,96581.0,96580.0,0.051788]
[1736868664524,0.051788,96581.0,96566.0,0.0484]
[1736868664525,0.05178,96595.0,96566.0,0.0484]
[1736868664733,0.051787,96583.0,96566.0,0.0484]
[1736868664920,0.051787,96582.0,96566.0,0.0484]
[1736868665122,0.051785,96586.0,96585.0,0.051783]
[1736868665321,0.00905277,96594.0,96576.0,0.17032504]
[1736868665730,0.1347,96599.0,96576.0,0.17032504]
[1736868666127,0.1,96600.0,96592.0,0.051782]
[1736868666833,0.051781,96594.0,96592.0,0.051782]
[1736868667027,0.00655397,96593.0,96592.0,0.051782]
[1736868667326,0.00655397,96593.0,96580.0,0.17032504]
[1736868667327,0.00655397,96593.0,96580.0,0.051788]
[1736868667527,0.05465397,96593.0,96583.0,0.051786]
[1736868667723,0.051785,96586.0,96585.0,0.051784]
[1736868668125,0.051782,96591.0,96583.0,0.051786]
[1736868668325,0.22497901,96593.0,96567.0,0.0439]
[1736868668521,0.051794,96569.0,96568.0,0.051794]
[1736868668718,0.0943,96590.0,96573.0,0.051792]
[1736868668719,0.051791,96575.0,96573.0,0.051792]
[1736868669022,0.051784,96588.0,96567.0,0.0439]
[1736868669224,0.05179,96577.0,96576.0,0.05179]
[1736868669526,0.0933,96590.0,96570.0,0.17032504]
[1736868669527,0.051793,96571.0,96570.0,0.051793]
[1736868669828,0.0518,96558.0,96557.0,0.0518]
[1736868670130,0.0518,96558.0,96556.0,0.00155331]
[1736868670334,0.0518,96558.0,96556.0,0.051801]
[1736868670836,0.0518,96558.0,96548.0,0.17032504]
[1736868670837,0.005,96577.0,96548.0,0.17032504]
[1736868671030,0.0568,96558.0,96557.0,0.0528]
[1736868671728,0.005,96558.0,96557.0,0.0528]
[1736868671928,0.151777,96600.0,96557.0,0.0528]
[1736868672128,0.00155397,96593.0,96580.0,0.17032504]
[1736868672524,0.00155397,96593.0,96592.0,0.051782]
[1736868673520,0.00755397,96593.0,96592.0,0.051782]
[1736868673936,0.00755397,96593.0,96580.0,0.001]
[1736868674232,0.17032504,96590.0,96572.0,0.051792]
[1736868674432,0.17032504,96590.0,96562.0,0.048]
[1736868674637,0.051793,96571.0,96562.0,0.048]
[1736868674837,0.051793,96571.0,96570.0,0.051793]
[1736868675428,0.17032504,96590.0,96562.0,0.048]
[1736868675731,0.051795,96569.0,96530.0,0.26213458]
[1736868675931,0.051804,96550.0,96535.0,0.0473]
[1736868676236,0.051812,96537.0,96535.0,0.0473]
[1736868676431,0.26213458,96560.0,96530.0,0.051814]
[1736868676732,0.26213458,96560.0,96514.0,0.0486]
[1736868676733,0.051806,96547.0,96531.0,0.051814]
[1736868676935,0.051805,96548.0,96532.0,0.051814]
[1736868677135,0.051819,96522.0,96520.0,0.09912]
[1736868677437,0.051819,96522.0,96520.0,0.0473]
[1736868677638,0.05181,96540.0,96514.0,0.0464]
[1736868677639,0.051813,96534.0,96530.0,0.004]
[1736868677839,0.051814,96531.0,96530.0,0.004]
[1736868678027,0.051814,96531.0,96503.0,0.00895363]
[1736868678028,0.05182,96520.0,96503.0,0.00895363]
[1736868678334,0.05182,96520.0,96497.0,0.0475]
[1736868678335,0.051816,96528.0,96506.0,0.051828]
[1736868678539,0.051831,96501.0,96497.0,0.10829919]
[1736868678737,0.001,96527.0,96497.0,0.05646619]
[1736868679034,0.00907093,96538.0,96500.0,0.26213458]
[1736868679231,0.051824,96514.0,96509.0,0.051826]
[1736868679434,0.051824,96514.0,96500.0,0.26213458]
[1736868679631,0.051824,96514.0,96512.0,0.051824]
[1736868681038,0.051826,96510.0,96506.0,0.055828]
[1736868681237,0.051826,96510.0,96497.0,0.05646619]
[1736868681238,0.26213458,96530.0,96499.0,0.051831]
[1736868681443,0.051831,96500.0,96499.0,0.051831]
[1736868682438,0.004,96514.0,96502.0,0.05183]
[1736868682630,0.051829,96505.0,96502.0,0.05183]
[1736868682830,0.051829,96504.0,96502.0,0.05183]
[1736868683238,0.051825,96511.0,96508.0,0.051827]
[1736868683541,0.003,96514.0,96508.0,0.051827]
[1736868683731,0.003,96514.0,96497.0,0.0475]
[1736868683930,0.051828,96507.0,96497.0,0.0475]
[1736868684133,0.051828,96507.0,96498.0,0.051832]
[1736868684134,0.003,96504.0,96498.0,0.051832]
[1736868684339,0.003,96504.0,96503.0,0.051829]
[1736868685739,0.00155482,96525.0,96503.0,0.051829]
[1736868685938,0.00155482,96525.0,96523.0,0.051819]
[1736868686138,0.05182,96520.0,96519.0,0.3608]
[1736868686338,0.00155482,96525.0,96507.0,0.3608]
[1736868686339,0.051825,96512.0,96507.0,0.3608]
[1736868686736,0.051826,96510.0,96507.0,0.412627]
[1736868687043,0.051822,96517.0,96507.0,0.3608]
[1736868687245,0.051822,96517.0,96516.0,0.3608]
[1736868688334,0.055822,96517.0,96516.0,0.3608]
[1736868690648,0.004,96517.0,96516.0,0.3608]
[1736868690944,0.004,96517.0,96516.0,0.412622]
[1736868691340,0.051819,96522.0,96516.0,0.3608]
[1736868692247,0.004,96517.0,96516.0,0.412622]
[1736868692643,0.00155482,96525.0,96516.0,0.412622]
[1736868692838,0.00155482,96525.0,96524.0,0.412618]
[1736868693743,0.05337282,96525.0,96524.0,0.3608]
[1736868695439,0.05937282,96525.0,96524.0,0.3618]
[1736868697445,0.051826,96510.0,96509.0,0.051826]
[1736868698743,0.051826,96510.0,96509.0,0.412626]
[1736868699037,0.051826,96510.0,96509.0,0.3608]
[1736868700248,0.051818,96524.0,96509.0,0.3608]
[1736868700249,0.051815,96530.0,96509.0,0.3608]
[1736868700446,0.051816,96529.0,96524.0,0.412618]
[1736868700652,0.3608,96550.0,96524.0,0.412618]
[1736868700845,0.3608,96550.0,96541.0,0.051809]
[1736868701041,0.051807,96545.0,96544.0,0.051806]
[1736868701442,0.3608,96555.0,96541.0,0.3608]
[1736868701643,0.051808,96542.0,96541.0,0.412609]
[1736868702050,0.051815,96531.0,96528.0,0.00903759]
[1736868702251,0.3608,96533.0,96517.0,0.3608]
[1736868702451,0.051821,96518.0,96517.0,0.3608]
[1736868702754,0.051821,96518.0,96503.0,0.0488]
[1736868702755,0.051827,96509.0,96508.0,0.412626]
[1736868703149,0.051827,96509.0,96508.0,0.3608]
[1736868704247,0.052827,96509.0,96508.0,0.3688]
[1736868705252,0.052827,96509.0,96508.0,0.3708]
[1736868705945,0.052827,96509.0,96508.0,0.3688]
[1736868706550,0.12758423,96509.0,96508.0,0.3688]
[1736868706750,0.12758423,96509.0,96508.0,0.3608]
[1736868709452,0.07575723,96509.0,96508.0,0.412627]
[1736868709759,0.24514958,96518.0,96508.0,0.412627]
[1736868709760,0.051804,96550.0,96517.0,0.3608]
[1736868710059,0.051804,96550.0,96508.0,0.37126413]
[1736868710060,0.06090345,96564.0,96562.0,0.051798]
[1736868710252,0.05335118,96563.0,96562.0,0.412598]
[1736868710446,0.00155418,96563.0,96562.0,0.412598]
[1736868710949,0.00945396,96585.0,96582.0,0.051787]
[1736868711256,0.1,96600.0,96582.0,0.412587]
[1736868711643,0.05178,96595.0,96582.0,0.412587]
[1736868711845,0.27579328,96595.0,96594.0,0.051781]
[1736868712148,0.27579328,96595.0,96594.0,0.412581]
[1736868712743,0.11799328,96595.0,96594.0,0.412581]
[1736868712953,0.05941003,96600.0,96594.0,0.3618]
[1736868713256,0.05941003,96600.0,96599.0,0.412578]
[1736868714256,0.102556,96640.0,96629.0,0.051762]
[1736868714459,0.051753,96645.0,96639.0,0.3608]
[1736868714648,0.0484,96652.0,96641.0,0.3608]
[1736868714958,0.051753,96646.0,96641.0,0.3608]
[1736868715459,0.0484,96652.0,96643.0,0.051754]
[1736868715656,0.0484,96652.0,96641.0,0.3608]
[1736868715657,0.00155347,96653.0,96650.0,0.3608]
[1736868715849,0.01084754,96653.0,96650.0,0.3608]
[1736868716251,0.01084754,96653.0,96651.0,0.05175]
[1736868716458,0.00155347,96653.0,96651.0,0.05175]
[1736868717357,0.01055347,96653.0,96651.0,0.05275]
[1736868718453,0.01055347,96653.0,96651.0,0.05375]
[1736868718762,0.06230247,96653.0,96651.0,0.002]
[1736868719151,0.01055347,96653.0,96651.0,0.002]
[1736868719760,0.06230247,96653.0,96651.0,0.002]
[1736868721554,0.05175,96651.0,96650.0,0.3608]
[1736868722356,0.01055347,96653.0,96641.0,0.3608]
[1736868722553,0.051755,96642.0,96641.0,0.3608]
[1736868723558,0.009,96642.0,96641.0,0.3618]
[1736868724354,0.009,96642.0,96641.0,0.774355]
[1736868728562,0.060755,96642.0,96641.0,0.7226]
[1736868729151,0.009,96642.0,96641.0,0.7226]
[1736868729550,0.00155347,96653.0,96642.0,0.051755]
[1736868729752,0.00155347,96653.0,96652.0,0.3608]
[1736868729966,0.00155347,96653.0,96652.0,0.412549]
[1736868730562,0.0484,96678.0,96652.0,0.413549]
[1736868730761,0.0484,96678.0,96677.0,0.412536]
[1736868731962,0.0574,96678.0,96677.0,0.413536]
[1736868733662,0.0574,96678.0,96677.0,0.414536]
[1736868735063,0.009,96678.0,96677.0,0.414536]
[1736868735265,0.0015521,96698.0,96697.0,0.051725]
[1736868735462,0.0015521,96698.0,96697.0,0.773325]
[1736868736373,0.1,96700.0,96699.0,0.051724]
[1736868736568,0.00966459,96732.0,96697.0,0.72312]
[1736868736870,0.051706,96733.0,96731.0,0.3608]
[1736868739170,0.1017,96736.0,96731.0,0.3608]
[1736868739469,0.1017,96736.0,96732.0,0.3608]
[1736868739470,0.051707,96733.0,96732.0,0.3608]
[1736868739664,0.051707,96733.0,96732.0,0.282]
[1736868739970,0.051707,96733.0,96732.0,0.2032]
[1736868740966,0.412507,96733.0,96731.0,0.001]
[1736868741168,0.051715,96717.0,96716.0,0.3608]
[1736868743169,0.3608,96717.0,96691.0,0.3608]
[1736868743372,0.051728,96692.0,96691.0,0.3608]
[1736868743872,0.3608,96693.0,96673.0,0.3608]
[1736868744175,0.1696056,96683.0,96668.0,0.24819844]
[1736868744372,0.05174,96669.0,96668.0,0.24819844]
[1736868744672,0.05174,96669.0,96668.0,0.3608]
[1736868745065,0.05174,96669.0,96668.0,0.36029231]
[1736868745270,0.05174,96669.0,96668.0,0.35967137]
[1736868745476,0.05174,96669.0,96660.0,0.37022397]
[1736868745477,0.051743,96665.0,96660.0,0.37022397]
[1736868745673,0.051744,96662.0,96660.0,0.3608]
[1736868746579,0.0507,96669.0,96660.0,0.3608]
[1736868746773,0.051745,96661.0,96660.0,0.3608]
[1736868747275,0.3608,96661.0,96654.0,0.00943968]
[1736868747471,0.05175,96651.0,96650.0,0.3608]
[1736868747672,0.3608,96661.0,96648.0,0.00954458]
[1736868747869,0.051745,96660.0,96648.0,0.00954458]
[1736868748070,0.051751,96650.0,96648.0,0.00954458]
[1736868749074,0.3608,96652.0,96641.0,0.3608]
[1736868749278,0.051753,96645.0,96641.0,0.3608]
[1736868749478,0.0517,96660.0,96641.0,0.3608]
[1736868749675,0.0517,96660.0,96653.0,0.051749]
[1736868749868,0.051746,96659.0,96653.0,0.051749]
[1736868750074,0.051748,96655.0,96650.0,0.3608]
[1736868750273,0.003,96652.0,96650.0,0.3608]
[1736868750468,0.003,96652.0,96650.0,0.41255]
[1736868750868,0.0507,96660.0,96650.0,0.41255]
[1736868750869,0.051749,96654.0,96650.0,0.41255]
[1736868751280,0.003,96659.0,96657.0,0.051747]
[1736868751477,0.003,96659.0,96658.0,0.3608]
[1736868752283,0.0968,96689.0,96680.0,0.051734]
[1736868752480,0.0968,96689.0,96680.0,0.412534]
[1736868753281,0.0474,96689.0,96680.0,0.412534]
[1736868753475,0.0025526,96681.0,96680.0,0.412534]
[1736868754174,0.0015526,96681.0,96680.0,0.412534]
[1736868754376,0.0025526,96681.0,96680.0,0.412534]
[1736868755089,0.0025526,96681.0,96680.0,0.416534]
[1736868755793,0.0015526,96681.0,96680.0,0.417534]
[1736868755983,0.3608,96723.0,96680.0,0.417534]
[1736868756287,0.051719,96709.0,96708.0,0.3608]
[1736868757273,0.051719,96709.0,96701.0,0.051723]
[1736868757274,0.3608,96714.0,96696.0,0.3608]
[1736868757480,0.051725,96698.0,96696.0,0.3608]
[1736868758579,0.053725,96698.0,96696.0,0.3608]
[1736868759388,0.001,96697.0,96696.0,0.3608]
[1736868760488,0.001,96697.0,96688.0,0.3608]
[1736868760688,0.051727,96694.0,96692.0,0.051728]
[1736868760984,0.002,96697.0,96696.0,0.051726]
[1736868761183,0.004,96697.0,96696.0,0.412526]
[1736868761485,0.004,96697.0,96686.0,0.3608]
[1736868761794,0.051727,96695.0,96693.0,0.051727]
[1736868762092,0.05173,96690.0,96688.0,0.001]
[1736868762288,0.051731,96687.0,96686.0,0.412531]
[1736868762491,0.051731,96687.0,96686.0,0.3608]
[1736868762792,0.001,96687.0,96686.0,0.3608]
[1736868763089,0.002,96697.0,96696.0,0.051726]
[1736868763300,0.002,96697.0,96696.0,0.412526]
[1736868763992,0.00155184,96715.0,96696.0,0.412526]
[1736868764289,0.051717,96714.0,96710.0,0.051718]
[1736868764480,0.00155184,96715.0,96705.0,0.3608]
[1736868764686,0.051721,96706.0,96705.0,0.3608]
[1736868765397,0.051721,96706.0,96700.0,0.051723]
[1736868765590,0.051723,96702.0,96700.0,0.051723]
[1736868765796,0.051723,96702.0,96701.0,0.051723]
[1736868766190,0.002,96706.0,96695.0,0.3608]
[1736868766487,0.004,96706.0,96705.0,0.412521]
[1736868767193,0.002,96706.0,96705.0,0.412521]
[1736868767410,0.051713,96721.0,96706.0,0.05172]
[1736868767587,0.051713,96720.0,96719.0,0.3608]
[1736868768285,0.053721,96706.0,96705.0,0.3608]
[1736868768691,0.054721,96706.0,96687.0,0.3608]
[1736868768892,0.05173,96688.0,96687.0,0.3608]
[1736868769794,0.05173,96688.0,96687.0,0.37053833]
[1736868771091,0.05173,96688.0,96687.0,0.3608]
[1736868771594,0.05173,96688.0,96687.0,0.3618]
[1736868773395,0.05373,96688.0,96687.0,0.413531]
[1736868773591,0.002,96688.0,96687.0,0.412531]
[1736868773787,0.05573,96688.0,96687.0,0.3608]
[1736868774691,0.05373,96688.0,96687.0,0.3608]
[1736868774892,0.05473,96688.0,96687.0,0.3608]
[1736868775199,0.05174,96669.0,96654.0,0.3623518]
[1736868775391,0.051746,96658.0,96657.0,0.18501616]
[1736868775586,0.051741,96668.0,96654.0,0.3608]
[1736868775587,0.099041,96668.0,96654.0,0.3608]
[1736868775804,0.051747,96657.0,96655.0,0.051748]
[1736868775990,0.051742,96666.0,96655.0,0.051748]
[1736868776191,0.051747,96658.0,96654.0,0.3608]
[1736868776391,0.051748,96657.0,96656.0,0.051747]
[1736868776889,0.051744,96663.0,96662.0,0.051744]
[1736868777087,0.00112001,96675.0,96662.0,0.3608]
[1736868777391,0.002,96666.0,96665.0,0.051743]
[1736868777799,0.002,96666.0,96662.0,0.3608]
[1736868777985,0.051744,96663.0,96662.0,0.3608]
[1736868778192,0.002,96666.0,96665.0,0.051743]
[1736868778688,0.053742,96666.0,96665.0,0.051743]
[1736868778889,0.051744,96663.0,96662.0,0.3608]
[1736868779189,0.053744,96663.0,96662.0,0.37038583]
[1736868779396,0.002,96663.0,96662.0,0.06132983]
[1736868779593,0.051752,96648.0,96647.0,0.3608]
[1736868780191,0.05,96657.0,96634.0,0.3608]
[1736868780394,0.051759,96635.0,96634.0,0.3608]
[1736868781196,0.051762,96628.0,96627.0,0.3608]
[1736868781794,0.051762,96628.0,96614.0,0.3608]
[1736868781795,0.051758,96636.0,96614.0,0.3608]
[1736868781991,0.051758,96636.0,96606.0,0.18542815]
[1736868781992,0.051771,96612.0,96606.0,0.3608]
[1736868782194,0.051774,96607.0,96606.0,0.3608]
[1736868782694,0.0524,96620.0,96606.0,0.3608]
[1736868782896,0.051769,96616.0,96615.0,0.3608]
[1736868783092,0.051773,96608.0,96606.0,0.3608]
[1736868783499,0.046773,96608.0,96606.0,0.3608]
[1736868783899,0.046773,96608.0,96600.0,0.151777]
[1736868784092,0.051777,96602.0,96600.0,0.1]
[1736868785197,0.051777,96602.0,96600.0,0.151777]
[1736868785400,0.051777,96602.0,96600.0,0.101]
[1736868786509,0.051774,96607.0,96600.0,0.101]
[1736868786809,0.051774,96607.0,96606.0,0.051774]
[1736868786998,0.002,96608.0,96601.0,0.3608]
[1736868787198,0.002,96602.0,96601.0,0.3608]
[1736868789395,0.002,96607.0,96602.0,0.051776]
[1736868789602,0.002,96607.0,96606.0,0.051774]
[1736868789807,0.00991934,96637.0,96607.0,0.051773]
[1736868790104,0.051761,96630.0,96629.0,0.3608]
[1736868791015,0.051768,96618.0,96617.0,0.3608]
[1736868791202,0.051776,96603.0,96602.0,0.004]
[1736868791600,0.051777,96601.0,96600.0,0.1]
[1736868791802,0.412577,96601.0,96600.0,0.1]
[1736868792001,0.413577,96601.0,96600.0,0.1]
[1736868792311,0.051777,96601.0,96600.0,0.1]
[1736868793715,0.051777,96601.0,96600.0,0.151777]
[1736868794017,0.051777,96601.0,96600.0,0.101]
[1736868794405,0.052777,96601.0,96600.0,0.101]
[1736868795199,0.051777,96601.0,96600.0,0.101]
[1736868795607,0.413734,96606.0,96605.0,0.051775]
[1736868795812,0.00967774,96609.0,96601.0,0.412577]
[1736868796113,0.3608,96622.0,96601.0,0.3608]
[1736868796311,0.051773,96610.0,96609.0,0.051772]
[1736868796903,0.36196,96622.0,96609.0,0.3608]
[1736868797110,0.051766,96621.0,96620.0,0.051766]
[1736868797409,0.00108001,96622.0,96621.0,0.051766]
[1736868797610,0.051757,96638.0,96637.0,0.051757]
[1736868797807,0.00978728,96648.0,96636.0,0.3608]
[1736868798008,0.002,96622.0,96619.0,0.3608]
[1736868798414,0.002,96622.0,96621.0,0.051766]
[1736868798612,0.051764,96625.0,96624.0,0.051764]
[1736868799112,0.00112001,96640.0,96624.0,0.051764]
[1736868799311,0.051756,96641.0,96640.0,0.051756]
[1736868799512,0.051756,96640.0,96639.0,0.3608]
[1736868800415,0.22167118,96650.0,96639.0,0.051756]
[1736868800619,0.3608,96649.0,96639.0,0.412556]
[1736868800819,0.3608,96649.0,96639.0,0.3608]
[1736868800820,0.051756,96640.0,96639.0,0.3608]
[1736868801115,0.3618,96649.0,96621.0,0.3608]
[1736868801116,0.051766,96622.0,96621.0,0.3608]
[1736868801305,0.051767,96619.0,96618.0,0.051768]
[1736868801819,0.05177,96614.0,96613.0,0.41257]
[1736868802219,0.05177,96614.0,96613.0,0.05177]
[1736868803017,0.051765,96624.0,96617.0,0.051768]
[1736868803212,0.001,96622.0,96610.0,0.53072018]
[1736868803420,0.001,96622.0,96613.0,0.005]
[1736868803715,0.001,96622.0,96621.0,0.3608]
[1736868804120,0.052766,96622.0,96621.0,0.412566]
[1736868804417,0.051766,96622.0,96621.0,0.412566]
[1736868804616,0.051766,96622.0,96621.0,0.3608]
[1736868805010,0.05177,96614.0,96613.0,0.006]
[1736868805405,0.05277,96614.0,96613.0,0.001]
[1736868805613,0.051777,96601.0,96600.0,0.1]
[1736868806208,0.052777,96601.0,96600.0,0.1]
[1736868806516,0.052777,96601.0,96580.0,0.3608]
[1736868806814,0.051786,96584.0,96583.0,0.051786]
[1736868807018,0.051783,96589.0,96588.0,0.051783]
[1736868807409,0.16992018,96620.0,96589.0,0.051783]
[1736868807613,0.0524,96619.0,96606.0,0.3608]
[1736868807811,0.051771,96612.0,96611.0,0.051771]
[1736868808013,0.0524,96619.0,96606.0,0.3608]
[1736868808213,0.0524,96619.0,96616.0,0.3608]
[1736868808214,0.051769,96617.0,96616.0,0.3608]
[1736868808616,0.051769,96617.0,96616.0,0.412569]
[1736868808922,0.0524,96619.0,96618.0,0.051768]
[1736868809116,0.05284301,96627.0,96616.0,0.3608]
[1736868809323,0.00108001,96627.0,96626.0,0.051763]
[1736868809516,0.00155328,96630.0,96624.0,0.3608]
[1736868809725,0.00155328,96630.0,96629.0,0.051762]
[1736868810315,0.00155328,96630.0,96629.0,0.412562]
[1736868810724,0.05831428,96630.0,96629.0,0.3608]
[1736868811114,0.36735328,96630.0,96611.0,0.3608]
[1736868811322,0.051768,96617.0,96611.0,0.412571]
[1736868811517,0.051773,96609.0,96608.0,0.18472485]
[1736868811725,0.051767,96621.0,96619.0,0.051767]
[1736868811923,0.051764,96626.0,96625.0,0.051764]
[1736868812619,0.00355328,96630.0,96629.0,0.051762]
[1736868813012,0.00255328,96630.0,96629.0,0.051762]
[1736868813519,0.3608,96651.0,96629.0,0.412562]
[1736868813729,0.41363001,96651.0,96650.0,0.051751]
[1736868813912,0.0015528,96660.0,96650.0,0.3608]
[1736868814316,0.05175,96652.0,96650.0,0.3608]
[1736868814520,0.051754,96645.0,96644.0,0.051754]
[1736868814823,0.051756,96640.0,96639.0,0.3608]
[1736868815321,0.051761,96631.0,96630.0,0.3608]
[1736868816020,0.002,96649.0,96648.0,0.051752]
[1736868816221,0.002,96652.0,96651.0,0.05175]
[1736868816421,0.007,96652.0,96651.0,0.05175]
[1736868816927,0.103535,96679.0,96659.0,0.051746]
[1736868817124,0.0518,96679.0,96659.0,0.412546]
[1736868817319,0.01004841,96677.0,96659.0,0.412546]
[1736868817521,0.0518,96679.0,96659.0,0.3608]
[1736868817716,0.051735,96680.0,96677.0,0.051736]
[1736868817920,0.0488,96683.0,96677.0,0.051736]
[1736868818121,0.051738,96673.0,96671.0,0.412539]
[1736868818720,0.4083,96696.0,96671.0,0.3608]
[1736868818930,0.46365846,96716.0,96691.0,0.3608]
[1736868819124,0.00108001,96708.0,96699.0,0.412524]
[1736868819530,0.051721,96705.0,96699.0,0.412524]
[1736868819922,0.0100771,96710.0,96699.0,0.412524]
[1736868820124,0.051719,96709.0,96699.0,0.412524]
[1736868820936,0.05172,96708.0,96699.0,0.412524]
[1736868821326,0.3608,96704.0,96680.0,0.3608]
[1736868821522,0.051725,96697.0,96694.0,0.051727]
[1736868821728,0.151724,96700.0,96699.0,0.001]
[1736868822129,0.051726,96697.0,96690.0,0.051729]
[1736868822426,0.051726,96697.0,96695.0,0.051726]
[1736868822630,0.1,96700.0,96698.0,0.051725]
[1736868824125,0.1,96700.0,96698.0,0.06136657]
[1736868824525,0.1,96700.0,96698.0,0.051725]